bitfinex/quotes_ETHUSD_20220212
["timestamp","ask_amount","ask_price","bid_price","bid_amount"]
[1644630886549,0.65471911,2950.0,2949.6,0.00836724]
[1644630886751,0.15258941,2949.9,2949.6,0.00836724]
[1644630886953,0.15258941,2949.9,2949.5,2.54342]
[1644630887353,0.15258941,2949.9,2949.6,0.00836724]
[1644630888153,0.15258941,2949.9,2949.5,2.54342]
[1644630888355,0.7989424,2949.9,2949.5,2.54342]
[1644630888558,0.7989424,2949.8,2949.6,0.00836724]
[1644630888754,0.15258941,2949.7,2949.6,0.00836724]
[1644630888953,0.64635299,2949.8,2949.6,0.00836724]
[1644630889393,0.64635299,2949.8,2949.5,2.54342]
[1644630889593,0.64635299,2949.8,2949.6,0.00836729]
[1644630890600,0.64635299,2949.8,2949.5,1.69563]
[1644630890798,0.64635299,2949.8,2949.6,0.00836729]
[1644630891799,0.64635299,2949.8,2949.5,1.69563]
[1644630892200,0.64635299,2949.8,2949.6,0.00836729]
[1644630893145,0.64635299,2949.8,2949.5,1.69563]
[1644630893345,0.64635299,2949.8,2949.6,0.00836729]
[1644630893752,0.64635299,2949.8,2949.2,2.16515]
[1644630893753,1.10726317,2948.9,2948.8,0.489]
[1644630893946,1.10726317,2948.9,2948.8,1.17630735]
[1644630893947,1.25985258,2948.9,2948.8,1.17630735]
[1644630899108,1.25985258,2948.9,2948.8,1.83480735]
[1644630899109,5.258e-05,2948.9,2948.8,1.83480735]
[1644630899310,0.81661773,2949.5,2948.8,3.43480735]
[1644630899311,0.1695,2949.5,2948.8,3.43480735]
[1644630899506,0.1695,2949.5,2949.4,0.84784]
[1644630899707,0.1695,2949.5,2949.4,1.33684]
[1644630902258,0.64711773,2949.7,2949.4,0.489]
[1644630902456,0.64711773,2949.6,2949.4,0.489]
[1644630902656,0.64711773,2949.5,2949.4,0.489]
[1644630902859,0.59711773,2949.5,2949.4,0.489]
[1644630903059,0.59711773,2949.5,2949.4,0.00836744]
[1644630903060,4.47012789,2949.5,2949.4,0.00836744]
[1644630903257,0.85883134,2949.5,2949.4,0.00836744]
[1644630903856,0.85883134,2949.5,2949.2,0.1695]
[1644630904059,0.85883134,2949.5,2949.3,0.00836754]
[1644630905106,0.85883134,2949.5,2948.7,0.84805]
[1644630905305,0.85883134,2949.5,2949.3,0.00836759]
[1644630906305,0.85883134,2949.5,2948.8,0.84902]
[1644630906506,1.26540995,2949.7,2949.3,0.00836759]
[1644630906507,0.85883134,2949.6,2949.3,0.00836759]
[1644630906709,1.02833134,2949.7,2949.3,0.00836759]
[1644630906910,0.2587659,2949.8,2949.3,0.00836759]
[1644630907109,0.2587659,2949.8,2949.4,0.489]
[1644630907309,0.2587659,2949.8,2949.4,1.80632]
[1644630907509,0.2587659,2949.8,2949.5,0.3]
[1644630907510,0.2504,2949.8,2949.5,0.3]
[1644630907709,0.25876627,2949.8,2949.6,0.6585]
[1644630908149,0.25876627,2949.8,2949.6,0.9585]
[1644630908546,0.25876627,2949.8,2949.6,0.6585]
[1644630908746,0.2504,2949.8,2949.6,0.9585]
[1644630908950,0.25876645,2949.8,2949.6,0.6585]
[1644630909551,0.25876645,2949.8,2949.6,0.9585]
[1644630909754,0.25876645,2949.8,2949.7,0.3]
[1644630909951,0.2504,2949.8,2949.7,0.3]
[1644630910152,0.25876645,2949.8,2949.7,0.3]
[1644630910954,0.25876645,2949.8,2949.7,0.489]
[1644630911155,0.2504,2949.8,2949.7,0.489]
[1644630913209,0.2504,2949.8,2949.5,0.17786766]
[1644630913210,0.2504,2949.8,2949.5,0.00836766]
[1644630913411,0.64745379,2949.6,2949.5,0.00836766]
[1644630913609,0.64745379,2949.6,2949.2,0.00389184]
[1644630913812,0.64745379,2949.6,2949.5,0.00639463]
[1644630914012,1.61193685,2949.6,2949.5,0.00639463]
[1644630914211,0.96448306,2949.6,2949.5,0.00639463]
[1644630914411,1.61191879,2949.6,2949.5,0.00639463]
[1644630914811,1.61191879,2949.6,2949.2,0.00389184]
[1644630915455,0.64743573,2949.5,2949.2,0.00389184]
[1644630915846,0.96448306,2949.6,2949.2,0.00389184]
[1644630916046,1.61191879,2949.6,2949.2,0.00389184]
[1644630916246,1.61191879,2949.6,2949.2,0.00683959]
[1644630916648,0.64743573,2949.6,2949.2,2.55033959]
[1644630916851,0.2504,2949.8,2949.3,1.001]
[1644630916852,0.89783573,2949.8,2949.3,1.001]
[1644630917050,0.89783573,2949.8,2949.4,0.001]
[1644630917451,0.90620173,2949.8,2949.3,1.50225943]
[1644630917650,0.86590931,2949.7,2949.4,0.001]
[1644630917950,0.86590931,2949.7,2949.3,1.50225943]
[1644630918151,1.51334504,2949.7,2949.4,0.001]
[1644630918453,0.86590931,2949.7,2949.3,1.49389184]
[1644630918651,0.86590931,2949.7,2949.4,0.00936749]
[1644630918851,0.86590931,2949.7,2949.4,0.00836749]
[1644630919299,0.26457605,2949.6,2949.4,0.00936749]
[1644630919498,0.89783573,2949.8,2949.4,0.001]
[1644630919901,0.90620201,2949.8,2949.4,0.00936758]
[1644630920300,0.64743573,2949.7,2949.6,0.87433811]
[1644630920502,0.25876628,2949.8,2949.7,0.1695]
[1644630920699,0.25876628,2949.8,2949.7,0.9585]
[1644630920700,0.2504,2949.8,2949.7,0.9585]
[1644630921104,0.25876646,2949.8,2949.7,0.9585]
[1644630921908,0.2504,2949.8,2949.7,0.9585]
[1644630924854,0.2504,2949.8,2949.7,0.789]
[1644630934302,1.13308986,2950.4,2950.0,1.69512]
[1644630934503,1.13308986,2950.4,2950.1,0.84756]
[1644630934703,0.03345927,2950.5,2950.1,1.14756]
[1644630934903,0.03345927,2950.5,2950.1,2.14756]
[1644630935107,3.97843573,2950.8,2950.1,2.14756]
[1644630935307,3.97843573,2950.8,2950.1,1.3]
[1644630935512,3.97843573,2950.8,2950.2,0.84756]
[1644630935807,3.97843573,2950.8,2950.3,0.3]
[1644630936009,1.1651887,2950.5,2950.3,0.3]
[1644630936609,1.17060953,2950.5,2950.3,0.3]
[1644630937009,0.00542083,2950.5,2950.3,1.14753]
[1644630937510,0.64743573,2950.8,2950.3,1.14753]
[1644630937710,2.09976964,2951.1,2950.3,1.99508]
[1644630937711,0.64743573,2950.9,2950.3,1.99508]
[1644630937962,0.00542083,2950.5,2950.3,2.99508]
[1644630938553,0.00542083,2950.5,2950.3,4.1425638]
[1644630938751,1.3442,2951.3,2950.8,0.84741]
[1644630938752,1.82233573,2951.3,2950.8,0.84741]
[1644630938952,0.64743573,2951.3,2951.0,0.84737]
[1644630939555,0.98178685,2951.2,2951.0,0.84737]
[1644630939756,0.37060056,2951.1,2951.0,0.84737]
[1644630939956,0.37060056,2951.1,2950.9,0.84735]
[1644630939957,1.01803629,2951.1,2950.9,0.84735]
[1644630940356,0.37060056,2951.0,2950.9,0.84735]
[1644630940760,0.37060056,2951.0,2950.8,3.38942]
[1644630940958,0.37060056,2950.9,2950.8,3.68942]
[1644630941158,1.63758763,2951.2,2950.8,3.38942]
[1644630941159,0.37060056,2951.1,2950.8,3.38942]
[1644630941558,0.00836525,2951.0,2950.8,3.38942]
[1644630941804,0.37060056,2950.9,2950.8,3.38942]
[1644630942203,0.37060056,2950.9,2950.8,4.38942]
[1644630942604,0.37060056,2950.9,2950.8,3.38942]
[1644630943705,0.37060056,2950.9,2950.8,1.69469]
[1644630943904,0.37060056,2950.9,2950.7,1.69468]
[1644630943905,0.37060056,2950.9,2950.6,2.35318]
[1644630944106,0.37060056,2950.8,2950.7,1.0]
[1644630944306,0.37060056,2950.9,2950.6,3.35318]
[1644630944508,0.37060056,2950.8,2950.7,0.84741]
[1644630944905,0.37060056,2950.9,2950.7,1.84741]
[1644630945110,0.37060056,2950.8,2950.7,1.84741]
[1644630946352,0.37060056,2950.8,2950.7,2.6948]
[1644630947559,0.0083654,2950.9,2950.7,2.6948]
[1644630947760,0.37060056,2950.8,2950.7,2.6948]
[1644630948765,0.0083654,2950.9,2950.7,2.6948]
[1644630948962,0.37060056,2950.8,2950.7,2.6948]
[1644630949905,0.0083654,2950.9,2950.7,2.6948]
[1644630950104,0.37060056,2950.8,2950.7,2.6948]
[1644630951510,0.37060056,2950.8,2950.7,3.1838]
[1644630952310,0.37060056,2950.8,2950.7,2.1338]
[1644630952712,0.0083654,2950.9,2950.7,3.34926915]
[1644630952959,0.03345658,2951.3,2950.9,3.45]
[1644630953155,0.37087014,2951.2,2951.1,1.6941965]
[1644630953355,0.37087014,2951.2,2951.1,2.1831965]
[1644630953655,1.84413573,2951.9,2951.1,3.35786022]
[1644630953656,1.01830587,2951.8,2951.1,3.35786022]
[1644630953859,0.37087014,2951.7,2951.2,1.1694]
[1644630954056,0.37087014,2951.6,2951.3,0.489]
[1644630954256,0.37087014,2951.5,2951.4,0.1694]
[1644630954457,0.64743573,2951.8,2951.5,1.6943]
[1644630954656,0.64743573,2951.8,2951.6,0.489]
[1644630955056,0.64743573,2951.8,2951.6,1.489]
[1644630955257,0.3228389,2951.7,2951.6,1.089]
[1644630955458,0.97027463,2951.8,2951.6,1.33613]
[1644630955660,0.3228389,2951.7,2951.6,0.489]
[1644630955858,0.97027463,2951.7,2951.6,0.489]
[1644630956059,0.3228389,2951.7,2951.6,0.489]
[1644630956464,1.19447304,2951.8,2951.6,0.489]
[1644630956706,0.3228389,2951.7,2951.6,0.489]
[1644630957108,0.87163409,2951.8,2951.6,0.489]
[1644630957311,0.3228389,2951.7,2951.4,1.6943]
[1644630957510,1.18610854,2951.7,2951.4,1.6943]
[1644630957911,0.64466079,2951.5,2951.4,1.6943]
[1644630958509,0.3228389,2951.5,2951.4,1.6943]
[1644630961251,0.3228389,2951.5,2951.4,2.2943]
[1644630961651,0.22630163,2951.7,2951.4,2.2943]
[1644630961858,1.03256964,2951.9,2951.5,0.84716]
[1644630962257,0.86326964,2951.7,2951.4,3.38861]
[1644630962557,1.06861252,2951.6,2951.5,1.69436]
[1644630965605,1.06861252,2951.6,2951.1,1.70288858]
[1644630965806,0.86155232,2951.2,2951.1,0.00835858]
[1644630966005,1.06861252,2951.6,2951.1,0.00835858]
[1644630966006,1.29490447,2951.4,2951.1,0.00835858]
[1644630966205,0.86160972,2951.2,2951.1,0.00835858]
[1644630966407,1.29490447,2951.3,2950.7,0.25]
[1644630966610,0.86172628,2950.8,2950.7,0.25]
[1644630966811,0.86172628,2950.8,2950.1,1.69512]
[1644630967012,0.86172628,2950.8,2950.2,0.001]
[1644630967210,0.86172628,2951.0,2950.2,0.001]
[1644630967412,0.86172628,2951.0,2950.3,0.1693]
[1644630967811,0.86172628,2951.0,2950.3,1.01689]
[1644630968058,1.10699153,2950.7,2950.4,0.001]
[1644630968658,0.60699153,2950.7,2950.5,0.8475]
[1644630968859,0.86172628,2951.0,2950.5,2.54253]
[1644630969060,0.86172628,2951.1,2950.5,1.14853]
[1644630969260,0.86172628,2951.2,2950.5,1.61783]
[1644630969462,0.86172628,2951.2,2950.5,1.44853]
[1644630969662,0.86172628,2951.2,2950.5,2.44753]
[1644630969859,1.87523124,2951.2,2950.5,2.44753]
[1644630970464,1.01350496,2951.2,2950.6,1.6949]
[1644630970661,1.01350496,2951.2,2950.6,1.8642]
[1644630970662,1.87523124,2951.2,2950.6,1.8642]
[1644630970861,1.87523124,2951.2,2950.6,2.8642]
[1644630971061,1.01350496,2951.2,2950.6,2.8642]
[1644630971263,1.87523124,2951.2,2950.6,2.2949]
[1644630971466,1.87523124,2951.2,2950.6,2.5424]
[1644630971701,0.64634845,2951.0,2950.6,2.5424]
[1644630971906,0.64634845,2950.9,2950.6,2.5424]
[1644630972106,0.64634845,2950.9,2950.8,0.00835838]
[1644630972907,0.64634845,2950.9,2950.6,2.5424]
[1644630973107,0.64634845,2950.9,2950.7,0.00835844]
[1644630974106,0.64634845,2950.9,2950.6,1.6949]
[1644630974309,0.64634845,2950.9,2950.7,0.00835849]
[1644630974707,0.64634845,2950.9,2950.7,0.02901345]
[1644630975308,0.64634845,2950.9,2950.7,0.02065496]
[1644630975551,0.64634845,2951.0,2950.7,0.02901345]
[1644630976053,0.64634845,2951.0,2950.7,0.87649345]
[1644630976450,0.64634845,2951.0,2950.7,0.86813496]
[1644630976651,0.64634845,2951.0,2950.7,0.87633966]
[1644630976854,1.87523124,2951.2,2950.7,0.02885966]
[1644630976855,0.64634845,2950.9,2950.7,0.02885966]
[1644630977257,0.64634845,2950.8,2950.7,0.02885966]
[1644630977459,0.64634845,2950.9,2950.7,0.02885966]
[1644630977656,0.59634845,2950.9,2950.7,0.02065496]
[1644630979060,0.59634845,2950.9,2950.7,0.02885971]
[1644630979912,0.86172628,2951.0,2950.7,0.02885971]
[1644630980115,0.86172628,2951.0,2950.7,0.02065496]
[1644630980311,0.86172628,2951.0,2950.7,0.02901345]
[1644630981314,0.86172628,2951.0,2950.7,0.02065496]
[1644630981514,2.30840943,2951.2,2950.7,0.0290134]
[1644630981515,0.86172628,2951.1,2950.7,0.0290134]
[1644630981713,0.86172628,2950.9,2950.7,0.0290134]
[1644630982519,0.86172628,2950.9,2950.7,0.02065496]
[1644630982725,0.86172628,2950.9,2950.7,0.02901345]
[1644630983355,0.28066977,2950.8,2950.7,0.02901345]
[1644630983555,0.86172628,2951.0,2950.7,0.02901345]
[1644630983755,2.30840943,2951.2,2950.7,0.02065496]
[1644630983756,1.14239605,2950.9,2950.7,0.02065496]
[1644630983955,0.28066977,2950.8,2950.7,0.02065496]
[1644630984656,0.86172628,2951.0,2950.7,0.02065496]
[1644630986057,1.14239605,2951.0,2950.7,0.02065496]
[1644630986258,1.14239605,2950.9,2950.7,0.0290134]
[1644630986459,0.28066977,2950.8,2950.7,0.0290134]
[1644630986699,0.86172628,2950.9,2950.7,0.0290134]
[1644630987305,0.86172628,2950.9,2950.7,0.02065496]
[1644630987504,0.86172628,2950.9,2950.7,0.02901345]
[1644630987907,0.28066977,2951.1,2950.7,0.02901345]
[1644630987908,0.86172628,2951.0,2950.7,0.02901345]
[1644630988109,0.28066977,2950.9,2950.7,0.02901345]
[1644630988306,0.28066977,2950.8,2950.7,0.02901345]
[1644630988506,0.6466452,2951.0,2950.7,0.02065496]
[1644630988909,0.6466452,2951.0,2950.7,0.02901345]
[1644630989105,0.6466452,2951.0,2950.7,0.87642345]
[1644630989307,0.5966452,2951.0,2950.7,1.17642345]
[1644630989508,0.5966452,2951.0,2950.7,1.47642345]
[1644630989706,0.5966452,2951.0,2950.7,2.31552496]
[1644630989906,0.5966452,2951.0,2950.7,3.1712934]
[1644630990308,0.5966452,2951.0,2950.8,1.0]
[1644630990557,0.28066977,2950.9,2950.8,1.0]
[1644630990954,0.28066977,2951.1,2950.8,1.0]
[1644630991756,0.86172628,2951.2,2950.8,1.0]
[1644630992157,0.86172628,2951.3,2950.8,1.0]
[1644630992356,0.86172628,2951.3,2950.9,0.00835828]
[1644630993357,0.28066977,2951.2,2950.8,1.0]
[1644630993558,0.28066977,2951.1,2950.8,1.0]
[1644630993758,0.28066977,2951.1,2951.0,0.00835818]
[1644630994241,0.28066977,2951.1,2950.7,0.93822444]
[1644630994439,0.28066977,2951.1,2950.7,0.84746]
[1644630994641,0.28066977,2951.1,2950.9,0.02065338]
[1644630995846,12.0919,2951.7,2950.9,0.02065338]
[1644630995847,0.28066977,2951.0,2950.9,0.02065338]
[1644630996043,0.28066977,2951.0,2950.9,0.50965338]
[1644630996244,0.28066977,2951.0,2950.9,0.80965338]
[1644630996644,0.28066977,2951.0,2950.9,1.80965338]
[1644630996847,0.28066977,2951.0,2950.9,1.97895338]
[1644630997046,0.28066977,2951.0,2950.9,1.80965338]
[1644630999155,0.28066977,2951.0,2950.9,2.98610341]
[1644630999758,0.28066977,2951.0,2950.9,2.96545003]
[1644631000558,0.28066977,2951.0,2950.9,2.66545003]
[1644631000759,0.28066977,2951.0,2950.9,0.489]
[1644631001359,0.28066977,2951.0,2950.9,1.789]
[1644631001557,0.28066977,2951.0,2950.9,1.489]
[1644631001814,0.28066977,2951.0,2950.9,1.789]
[1644631002114,0.28066977,2951.0,2950.9,1.489]
[1644631002312,0.28066977,2951.0,2950.9,1.789]
[1644631002511,0.28066977,2951.0,2950.9,1.489]
[1644631002913,0.28066977,2951.0,2950.9,0.489]
[1644631003313,0.28066977,2951.0,2950.9,1.789]
[1644631003514,0.28066977,2951.0,2950.9,1.489]
[1644631003712,0.28066977,2951.0,2950.9,0.489]
[1644631004112,0.28066977,2951.0,2950.9,1.489]
[1644631004312,0.28066977,2951.0,2950.9,0.489]
[1644631005757,0.28066977,2951.0,2950.9,1.489]
[1644631005956,0.28066977,2951.0,2950.9,0.489]
[1644631006357,0.28066977,2951.0,2950.9,0.789]
[1644631006557,0.28066977,2951.0,2950.9,0.489]
[1644631006760,0.28066977,2951.0,2950.9,1.489]
[1644631006961,0.28066977,2951.0,2950.9,0.489]
[1644631007160,0.28066977,2951.0,2950.9,1.489]
[1644631007461,0.28066977,2951.0,2950.9,1.789]
[1644631010007,0.28066977,2951.0,2950.9,2.96501467]
[1644631010214,0.28066977,2951.0,2950.9,1.789]
[1644631010413,0.28066977,2951.0,2950.9,2.96496943]
[1644631010614,0.28066977,2951.0,2950.9,0.489]
[1644631011819,0.28066977,2951.0,2950.9,3.53544526]
[1644631012018,0.28066977,2951.0,2950.9,4.71183399]
[1644631012219,0.28066977,2951.0,2950.9,6.31183399]
[1644631013462,0.28066977,2951.0,2950.9,1.6]
[1644631013658,0.28066977,2951.0,2950.9,2.77679808]
[1644631014564,0.28066977,2951.0,2950.9,1.6]
[1644631014763,0.28066977,2951.0,2950.9,0.3]
[1644631014964,0.28066977,2951.0,2950.9,2.47687753]
[1644631015165,0.28066977,2951.0,2950.9,1.3]
[1644631015368,0.28066977,2951.0,2950.9,0.3]
[1644631015566,0.28066977,2951.0,2950.8,2.16272275]
[1644631015767,0.28066977,2950.9,2950.8,2.16272275]
[1644631016066,0.28066977,2950.9,2950.8,3.34841193]
[1644631016264,0.28066977,2950.9,2950.8,6.70215751]
[1644631016713,0.28066977,2950.9,2950.8,3.34841193]
[1644631017312,0.28066977,2950.9,2950.8,3.64841193]
[1644631017714,0.28066977,2950.9,2950.8,7.02399197]
[1644631017917,0.28066977,2950.9,2950.8,4.13741193]
[1644631018317,0.28066977,2950.9,2950.8,3.53741193]
[1644631018519,0.28066977,2950.9,2950.8,1.489]
[1644631018718,0.28066977,2950.9,2950.8,2.33632]
[1644631018922,0.28066977,2950.9,2950.8,3.53719358]
[1644631019424,0.28066977,2950.9,2950.8,2.33632]
[1644631019621,0.28066977,2950.9,2950.8,3.53747018]
[1644631020963,0.28066977,2950.9,2950.8,2.33632]
[1644631021159,0.28066977,2950.9,2950.8,3.5377914]
[1644631021360,0.28066977,2950.9,2950.8,1.33632]
[1644631021561,0.28066977,2950.9,2950.8,2.33632]
[1644631021764,0.28066977,2950.9,2950.8,1.33632]
[1644631021970,0.28066977,2950.9,2950.8,0.489]
[1644631022264,0.28066977,2950.9,2950.8,1.33633]
[1644631022863,0.28066977,2950.9,2950.8,3.53762421]
[1644631023265,0.28066977,2950.9,2950.8,4.08762421]
[1644631032712,0.28066977,2950.9,2950.8,7.68304044]
[1644631033115,0.28066977,2950.9,2950.8,7.85234044]
[1644631035573,0.00835632,2951.4,2950.9,3.45]
[1644631035769,0.00835632,2951.4,2951.3,6.58788177]
[1644631035973,0.00835632,2951.4,2951.3,7.07688177]
[1644631036173,0.00835632,2951.4,2951.3,8.37688177]
[1644631036372,0.00835632,2951.4,2951.3,8.53953403]
[1644631036572,0.64676913,2951.8,2951.3,8.53953403]
[1644631036773,0.64676913,2951.8,2951.5,2.04696596]
[1644631036974,0.64676913,2951.9,2951.6,0.489]
[1644631037375,0.64676913,2951.9,2951.6,3.1831]
[1644631037577,0.64676913,2951.9,2951.6,2.1831]
[1644631037773,0.64676913,2951.9,2951.7,1.6]
[1644631037976,0.64676913,2951.9,2951.8,0.489]
[1644631038376,0.86172628,2952.1,2951.8,0.489]
[1644631038775,0.86172628,2952.1,2951.8,0.789]
[1644631039208,0.86172628,2952.1,2951.8,0.489]
[1644631039209,0.8700755,2952.1,2951.8,0.489]
[1644631039408,0.64669045,2951.9,2951.8,0.789]
[1644631039610,0.64669045,2951.9,2951.8,0.489]
[1644631039809,0.64669045,2951.9,2951.8,1.93609]
[1644631040219,0.64669045,2951.9,2951.8,1.489]
[1644631040413,0.64669045,2951.9,2951.8,0.489]
[1644631040614,0.00834932,2952.0,2951.8,0.489]
[1644631040817,0.8700756,2952.0,2951.8,0.489]
[1644631041313,0.86172628,2952.0,2951.8,0.489]
[1644631041715,0.87007555,2952.0,2951.8,0.489]
[1644631042516,0.86172628,2952.0,2951.8,0.489]
[1644631042719,2.41468714,2952.3,2951.8,0.489]
[1644631042720,0.86172628,2952.1,2951.8,0.489]
[1644631042974,1.11978267,2952.3,2951.8,0.489]
[1644631042975,0.87007555,2952.0,2951.8,0.489]
[1644631043166,0.86172628,2951.9,2951.8,0.489]
[1644631043365,0.87007555,2952.0,2951.8,0.489]
[1644631043767,0.86172628,2952.0,2951.8,0.489]
[1644631043968,0.87007555,2952.0,2951.8,0.489]
[1644631044772,0.86172628,2951.9,2951.8,0.489]
[1644631044974,1.29490447,2952.1,2951.8,0.489]
[1644631045174,0.86206327,2951.9,2951.8,0.489]
[1644631045977,0.87041254,2952.0,2951.8,0.489]
[1644631046178,0.86206327,2952.0,2951.8,0.489]
[1644631046376,0.87041259,2952.0,2951.8,0.489]
[1644631047224,0.00834932,2952.0,2951.8,0.489]
[1644631047422,0.86206327,2952.1,2951.8,0.489]
[1644631047623,0.87041254,2952.0,2951.8,0.489]
[1644631047823,0.86206327,2951.9,2951.8,0.489]
[1644631048025,0.00834927,2952.0,2951.8,0.489]
[1644631048622,0.86206327,2952.1,2951.8,0.489]
[1644631048822,0.00834927,2952.0,2951.8,0.489]
[1644631049224,0.86206327,2951.9,2951.8,0.489]
[1644631049425,0.00834927,2952.0,2951.8,0.489]
[1644631049426,0.87041254,2952.0,2951.8,0.489]
[1644631049827,0.87041254,2952.0,2951.8,0.789]
[1644631049828,0.86206327,2952.0,2951.8,0.789]
[1644631050026,0.64648105,2951.9,2951.8,0.789]
[1644631050225,0.64648105,2951.9,2951.8,1.789]
[1644631050664,0.00834927,2952.0,2951.8,0.489]
[1644631050862,0.00834927,2952.0,2951.8,0.789]
[1644631051062,0.64650037,2951.9,2951.8,0.789]
[1644631051264,0.65484964,2952.0,2951.8,0.789]
[1644631051462,0.65484964,2952.0,2951.8,0.489]
[1644631051661,0.64650037,2951.9,2951.8,0.489]
[1644631051865,0.65484964,2952.0,2951.8,0.489]
[1644631052265,0.64650037,2952.0,2951.8,0.489]
[1644631052466,0.64650037,2951.9,2951.8,0.489]
[1644631053866,0.65484969,2952.0,2951.8,0.489]
[1644631054215,0.64650037,2951.9,2951.8,0.489]
[1644631055724,0.23583817,2951.9,2951.8,0.3]
[1644631056121,0.23583817,2951.9,2951.8,0.1693]
[1644631057323,0.00834932,2952.0,2951.9,3.45]
[1644631057522,0.00834932,2952.0,2951.9,0.489]
[1644631057724,0.00834932,2952.0,2951.9,2.25165226]
[1644631057964,0.00834932,2952.0,2951.9,2.1418718]
[1644631058158,0.64650037,2952.4,2951.9,3.1418718]
[1644631058461,0.64650037,2952.4,2952.3,0.84689]
[1644631058659,0.64650037,2952.4,2952.3,1.50519]
[1644631058859,0.67989225,2952.5,2952.3,2.50519]
[1644631059060,0.67989225,2952.5,2952.4,1.07112645]
[1644631059261,0.67989225,2952.5,2952.4,1.86012645]
[1644631059460,0.67989225,2952.5,2952.4,2.86012645]
[1644631059461,0.64650037,2952.5,2952.4,2.86012645]
[1644631059659,0.60484909,2952.6,2952.4,2.86012645]
[1644631060667,0.59650037,2952.6,2952.4,2.86012645]
[1644631060866,0.60484904,2952.6,2952.4,4.55367045]
[1644631061070,0.60484904,2952.6,2952.4,5.21466815]
[1644631061266,0.60484904,2952.6,2952.5,3.6497531]
[1644631061467,0.60484904,2952.6,2952.5,1.9583]
[1644631061711,0.63742686,2952.6,2952.5,1.9583]
[1644631061914,0.04092649,2952.6,2952.5,0.9583]
[1644631062113,0.04092649,2952.6,2952.5,1.9583]
[1644631062312,0.04092649,2952.6,2952.5,2.97962597]
[1644631063213,0.04092649,2952.6,2952.5,2.81032597]
[1644631065013,0.04092649,2952.6,2952.5,1.789]
[1644631066266,0.04092649,2952.6,2952.5,0.789]
[1644631066463,0.04092649,2952.6,2952.5,1.789]
[1644631066665,0.04092649,2952.6,2952.5,0.789]
[1644631066868,0.04092649,2952.6,2952.5,1.789]
[1644631067068,0.04092649,2952.6,2952.5,0.789]
[1644631067268,0.04092649,2952.6,2952.5,1.789]
[1644631067668,0.04092649,2952.6,2952.5,0.789]
[1644631067969,0.04092649,2952.6,2952.5,1.489]
[1644631068169,0.04092649,2952.6,2952.5,0.489]
[1644631068370,0.04092649,2952.6,2952.5,1.489]
[1644631068669,0.04092649,2952.6,2952.5,0.489]
[1644631068872,0.04092649,2952.6,2952.5,1.489]
[1644631069072,1.46420447,2953.2,2952.5,1.489]
[1644631069073,0.85960752,2953.4,2953.3,0.8467]
[1644631069316,7.24811948,2954.4,2953.3,4.84820179]
[1644631069317,0.85960752,2954.0,2953.3,4.84820179]
[1644631069617,3.25271948,2954.4,2953.4,0.3]
[1644631069618,0.85960752,2954.1,2953.4,0.3]
[1644631069815,0.85960752,2954.3,2953.5,0.489]
[1644631070017,0.86084907,2954.2,2953.6,0.1691]
[1644631070215,0.86084907,2954.2,2953.6,1.862]
[1644631070417,1.66913407,2955.1,2953.8,4.2964392]
[1644631070620,0.05,2955.2,2954.3,2.5383]
[1644631070824,0.05,2955.2,2954.4,1.6]
[1644631071022,0.1691,2956.0,2954.4,1.6]
[1644631071023,0.36354628,2955.9,2954.4,2.089]
[1644631071320,0.36354628,2955.9,2954.4,0.489]
[1644631071321,4.95408465,2955.2,2954.4,0.489]
[1644631071531,3.5,2955.1,2954.4,0.489]
[1644631071720,3.5,2955.3,2953.9,1.69292]
[1644631071919,1.09467689,2954.2,2953.9,5.19292]
[1644631072121,1.09467689,2954.2,2953.9,6.0395]
[1644631072321,1.09467689,2954.2,2953.9,4.34658]
[1644631072966,1.10270388,2954.2,2953.9,0.84658]
[1644631073561,1.10270388,2954.2,2953.9,1.69311]
[1644631073763,1.10270388,2954.2,2953.6,0.84664]
[1644631073764,1.09467689,2954.2,2953.6,0.84664]
[1644631073967,3.52382799,2954.1,2953.5,3.5]
[1644631074166,1.00615748,2953.7,2953.5,3.5]
[1644631074667,1.00615748,2953.7,2953.3,1.6932]
[1644631075263,0.00716714,2953.6,2953.3,1.6932]
[1644631075564,0.00716714,2953.6,2953.2,1.86243]
[1644631075765,0.00716714,2953.6,2953.2,0.1691]
[1644631076363,1.00615748,2953.7,2953.2,0.1691]
[1644631076565,0.00716723,2953.5,2952.9,0.84683]
[1644631076824,0.00716723,2953.5,2953.2,0.84673]
[1644631077223,0.96332471,2953.7,2953.2,0.84673]
[1644631077823,0.96332471,2953.7,2953.3,0.84673]
[1644631078022,0.96332471,2953.7,2953.2,0.84673]
[1644631078924,0.00726483,2953.6,2953.2,0.84673]
[1644631079125,0.00726483,2953.6,2953.1,0.00726622]
[1644631079524,1.07125726,2953.2,2953.1,0.00726622]
[1644631080023,1.07125726,2953.2,2953.0,0.00726593]
[1644631080567,0.00726434,2953.6,2953.0,0.00726593]
[1644631080770,4.96134899,2953.6,2953.0,0.00726593]
[1644631080968,0.1693,2953.5,2952.8,0.1691]
[1644631081366,0.1693,2953.5,2953.1,0.00726598]
[1644631081568,4.95408465,2953.2,2953.1,0.00726598]
[1644631081771,5.86949993,2953.2,2953.1,0.00726598]
[1644631082269,5.86949993,2953.2,2952.8,0.1691]
[1644631082470,5.86949993,2953.2,2953.0,0.00724534]
[1644631083069,0.91541528,2953.2,2953.0,0.00724534]
[1644631083272,5.86949993,2953.2,2953.0,0.00724534]
[1644631083470,0.91541528,2953.2,2952.8,0.1691]
[1644631083670,5.86949993,2953.2,2953.0,0.00724538]
[1644631084515,3.27074368,2953.6,2953.0,0.00724538]
[1644631084719,3.2635,2953.6,2952.8,0.6581]
[1644631084913,0.00724368,2953.6,2953.0,0.00724538]
[1644631085518,0.86478715,2953.4,2953.0,0.00724538]
[1644631085918,0.86478715,2953.4,2952.8,1.50495]
[1644631086120,0.86478715,2953.4,2953.1,0.0072474]
[1644631087122,0.86478715,2953.4,2953.2,0.04591535]
[1644631087324,0.86478715,2953.4,2953.1,0.00724741]
[1644631087823,0.66478715,2953.4,2953.2,0.04591535]
[1644631088064,0.00724602,2953.6,2953.2,0.04591535]
[1644631088264,0.1693,2953.8,2953.2,0.04591535]
[1644631088466,0.0072461,2953.6,2953.2,0.04591535]
[1644631089065,1.1177107,2953.6,2953.2,0.04591535]
[1644631089267,0.0072461,2953.6,2953.1,0.00724749]